bitfinex/quotes_BTCUSD_20241120
["timestamp","ask_amount","ask_price","bid_price","bid_amount"]
[1732136281621,0.212381,94170.0,94141.0,0.04348591]
[1732136281837,0.212381,94170.0,94137.0,0.01]
[1732136281838,0.10711512,94169.0,94145.0,0.01]
[1732136282022,0.10711512,94169.0,94164.0,0.106197]
[1732136282226,0.0017138,94176.0,94175.0,0.106185]
[1732136282996,0.0017138,94176.0,94175.0,0.107185]
[1732136283208,0.0017138,94176.0,94175.0,0.001]
[1732136283405,0.0017138,94176.0,94175.0,0.107185]
[1732136284443,0.0017138,94176.0,94175.0,0.10824675]
[1732136284622,0.0017138,94176.0,94175.0,0.107185]
[1732136286282,0.0017138,94176.0,94175.0,0.108185]
[1732136287486,0.21501292,94176.0,94175.0,0.002]
[1732136287685,0.38434981,94176.0,94175.0,0.002]
[1732136288491,0.34161292,94176.0,94175.0,0.002]
[1732136288914,0.34161292,94176.0,94175.0,0.001]
[1732136289089,0.34161292,94176.0,94170.0,0.10619]
[1732136289090,0.106185,94175.0,94170.0,0.10619]
[1732136289323,0.10711512,94174.0,94170.0,0.10619]
[1732136289526,0.21330212,94174.0,94170.0,0.10619]
[1732136289722,0.10711512,94174.0,94168.0,0.106192]
[1732136289953,0.1283138,94176.0,94175.0,0.107185]
[1732136289954,0.0017138,94176.0,94175.0,0.107185]
[1732136290627,0.0017138,94176.0,94175.0,0.106185]
[1732136292892,0.0017138,94176.0,94175.0,0.107185]
[1732136293685,0.0017138,94176.0,94175.0,0.001]
[1732136293889,0.0017138,94176.0,94175.0,0.002]
[1732136294090,0.3578206,94176.0,94175.0,0.002]
[1732136294497,0.3578206,94176.0,94175.0,0.001]
[1732136294864,0.3578206,94176.0,94175.0,0.002]
[1732136295273,0.3578206,94176.0,94166.0,0.106195]
[1732136295274,0.106188,94172.0,94166.0,0.106195]
[1732136295482,0.106187,94173.0,94165.0,0.106195]
[1732136295808,0.106188,94172.0,94166.0,0.106194]
[1732136296066,0.10619,94171.0,94166.0,0.106194]
[1732136297071,0.21330312,94173.0,94164.0,0.102896]
[1732136297288,0.106189,94172.0,94166.0,0.108194]
[1732136297780,0.106189,94172.0,94166.0,0.107194]
[1732136298035,0.106189,94172.0,94166.0,0.108194]
[1732136298283,0.106189,94172.0,94166.0,0.107194]
[1732136298785,0.106189,94172.0,94166.0,0.108194]
[1732136298978,0.21330212,94173.0,94166.0,0.002]
[1732136299130,0.10711512,94173.0,94171.0,0.106189]
[1732136299337,0.10711512,94173.0,94166.0,0.001]
[1732136299541,0.106194,94167.0,94166.0,0.002]
[1732136299740,0.21330912,94167.0,94166.0,0.002]
[1732136300138,0.21330912,94167.0,94166.0,0.001]
[1732136300525,0.10711512,94167.0,94123.0,0.09464017]
[1732136300773,0.212393,94165.0,94152.0,0.106211]
[1732136300969,0.106205,94158.0,94152.0,0.106211]
[1732136301180,0.10711512,94164.0,94152.0,0.106211]
[1732136301400,0.106202,94160.0,94154.0,0.106208]
[1732136301801,0.106202,94160.0,94155.0,0.106207]
[1732136302018,0.0496,94159.0,94154.0,0.106208]
[1732136302223,0.10621,94153.0,94152.0,0.001]
[1732136302453,0.21332512,94153.0,94152.0,0.001]
[1732136303583,0.21332512,94153.0,94152.0,0.002]
[1732136304208,0.21332512,94153.0,94152.0,0.001]
[1732136304733,0.20523143,94153.0,94145.0,0.0008559]
[1732136304931,0.081,94157.0,94150.0,0.106212]
[1732136305142,0.0496,94159.0,94156.0,0.106206]
[1732136305337,0.15671512,94159.0,94156.0,0.106206]
[1732136305599,0.15671512,94159.0,94150.0,0.106212]
[1732136305831,0.106206,94157.0,94149.0,0.106213]
[1732136306035,0.106206,94157.0,94152.0,0.001]
[1732136306170,0.15671512,94159.0,94149.0,0.106213]
[1732136306370,0.15671512,94159.0,94145.0,0.0018559]
[1732136306371,0.106207,94156.0,94151.0,0.106212]
[1732136306701,0.106204,94158.0,94153.0,0.106209]
[1732136307038,0.15671512,94159.0,94153.0,0.106209]
[1732136307039,0.106205,94157.0,94153.0,0.106209]
[1732136307175,0.26291912,94159.0,94153.0,0.106209]
[1732136307371,0.15671512,94159.0,94154.0,0.106208]
[1732136307634,0.15671512,94159.0,94153.0,0.10621]
[1732136307841,0.15060712,94159.0,94153.0,0.10621]
[1732136308040,0.106206,94157.0,94156.0,0.001]
[1732136308509,0.106206,94157.0,94153.0,0.001]
[1732136308715,0.106207,94155.0,94154.0,0.001]
[1732136308919,0.106207,94155.0,94152.0,0.0008559]
[1732136308920,0.10711512,94155.0,94152.0,0.0008559]
[1732136309122,0.10621,94153.0,94152.0,0.0008559]
[1732136309326,0.21332512,94153.0,94152.0,0.0008559]
[1732136310471,0.29442512,94153.0,94152.0,0.0008559]
[1732136310674,0.18821512,94153.0,94152.0,0.0008559]
[1732136310903,0.29442512,94153.0,94152.0,0.0008559]
[1732136311569,0.29442512,94153.0,94152.0,0.0018559]
[1732136312401,0.29442512,94153.0,94152.0,0.0028559]
[1732136312818,0.37491528,94153.0,94152.0,0.0028559]
[1732136314738,0.42231528,94153.0,94152.0,0.0028559]
[1732136314936,0.93226228,94153.0,94152.0,0.0028559]
[1732136315139,1.04226228,94153.0,94152.0,0.0028559]
[1732136315316,0.116165,94146.0,94145.0,0.0008559]
[1732136315515,1.10885507,94146.0,94145.0,0.0008559]
[1732136318522,1.10885507,94146.0,94145.0,0.0018559]
[1732136318712,0.97763312,94146.0,94145.0,0.0018559]
[1732136319474,1.13814001,94146.0,94145.0,0.0018559]
[1732136319748,1.21791762,94146.0,94145.0,0.0018559]
[1732136320287,0.106246,94121.0,94120.0,0.0008569]
[1732136320490,0.21336112,94121.0,94120.0,0.0008569]
[1732136321124,0.10711512,94121.0,94120.0,0.1071039]
[1732136321433,0.10624,94126.0,94121.0,0.106246]
[1732136321756,0.10711512,94125.0,94120.0,0.0008569]
[1732136321936,0.106244,94123.0,94120.0,0.0008569]
[1732136322133,0.10711512,94122.0,94121.0,0.106246]
[1732136322343,0.10711512,94122.0,94120.0,0.0008569]
[1732136323223,0.10711512,94122.0,94121.0,0.107246]
[1732136323663,0.04244558,94126.0,94124.0,0.106242]
[1732136323871,0.55217087,94129.0,94122.0,0.106245]
[1732136323872,0.55217087,94129.0,94125.0,0.106241]
[1732136324275,0.106238,94128.0,94123.0,0.106243]
[1732136324519,0.55217087,94129.0,94121.0,0.001]
[1732136324687,0.55217087,94129.0,94126.0,0.106239]
[1732136324886,0.55217087,94129.0,94128.0,0.106238]
[1732136325625,0.55217087,94129.0,94120.0,0.0008569]
[1732136325828,0.106246,94121.0,94120.0,0.0008569]
[1732136325957,0.25836112,94121.0,94120.0,0.0008569]
[1732136328319,0.25836112,94121.0,94120.0,0.0018569]
[1732136330011,0.38292022,94121.0,94120.0,0.0018569]
[1732136330237,0.49198277,94121.0,94120.0,0.0018569]
[1732136332195,0.106256,94112.0,94107.0,0.106261]
[1732136332399,0.10711512,94111.0,94108.0,0.10626]
[1732136332621,0.10711512,94111.0,94105.0,0.106263]
[1732136332622,0.21337312,94111.0,94107.0,0.106261]
[1732136332795,0.21337312,94111.0,94105.0,0.106263]
[1732136332796,0.21337312,94111.0,94106.0,0.106262]
[1732136333201,0.106262,94107.0,94103.0,0.0008571]
[1732136333408,0.10626,94109.0,94104.0,0.106265]
[1732136333611,0.10711512,94109.0,94108.0,0.10626]
[1732136334297,0.10711512,94109.0,94107.0,0.001]
[1732136334706,0.10711512,94109.0,94108.0,0.10626]
[1732136334902,0.10711512,94109.0,94103.0,0.0008571]
[1732136335310,0.16032823,94109.0,94107.0,0.106261]
[1732136335539,0.16032823,94109.0,94108.0,0.10626]
[1732136335864,0.10711512,94109.0,94108.0,0.10626]
[1732136336213,0.10711512,94109.0,94107.0,0.106261]
[1732136336414,0.10711512,94109.0,94108.0,0.10626]
[1732136336613,0.10711512,94109.0,94105.0,0.106263]
[1732136336837,0.02133721,94108.0,94105.0,0.106263]
[1732136337040,0.10711512,94109.0,94106.0,0.106262]
[1732136337216,0.10711512,94109.0,94107.0,0.106261]
[1732136338237,0.14970333,94109.0,94105.0,0.106263]
[1732136338434,0.14970333,94109.0,94106.0,0.106262]
[1732136338839,0.14970333,94109.0,94103.0,0.0008571]
[1732136339013,0.14970333,94109.0,94104.0,0.106264]
[1732136339477,0.14970333,94109.0,94106.0,0.106262]
[1732136340048,0.10711512,94109.0,94106.0,0.106262]
[1732136340247,0.10711512,94109.0,94107.0,0.106261]
[1732136340744,0.10711512,94109.0,94104.0,0.106265]
[1732136340745,0.10711512,94109.0,94105.0,0.106263]
[1732136340947,0.10711512,94108.0,94103.0,0.0008571]
[1732136341566,0.106263,94106.0,94103.0,0.0008571]
[1732136343183,0.10711512,94096.0,94089.0,0.106282]
[1732136343391,0.04339115,94105.0,94103.0,0.106266]
[1732136343567,0.212533,94103.0,94095.0,0.106275]
[1732136343768,0.10627,94100.0,94088.0,0.106283]
[1732136343911,0.12127495,94111.0,94088.0,0.106283]
[1732136343912,0.10711512,94099.0,94093.0,0.106276]
[1732136344335,0.10711512,94099.0,94088.0,0.106283]
[1732136344336,0.10711512,94099.0,94091.0,0.106279]
[1732136344533,0.10711512,94099.0,94086.0,0.0008572]
[1732136344736,0.10711512,94099.0,94095.0,0.106274]
[1732136345140,0.10711512,94099.0,94097.0,0.106272]
[1732136345338,0.10711512,94099.0,94095.0,0.106274]
[1732136345755,0.21338612,94099.0,94093.0,0.106277]
[1732136345918,0.106275,94096.0,94091.0,0.106279]
[1732136346194,0.10711512,94095.0,94094.0,0.106276]
[1732136347031,0.10711512,94095.0,94086.0,0.0008572]
[1732136347032,0.106284,94087.0,94086.0,0.0008572]
[1732136347248,0.44229912,94087.0,94086.0,0.0008572]
[1732136347459,0.106291,94081.0,94059.0,0.106315]
[1732136347702,0.106291,94081.0,94063.0,0.10631]
[1732136347703,0.26200612,94081.0,94063.0,0.10631]
[1732136347915,1.76200612,94081.0,94067.0,0.106306]
[1732136348135,0.14243471,94085.0,94061.0,0.106313]
[1732136348136,0.09499168,94085.0,94080.0,0.1071477]
[1732136348309,0.04367135,94095.0,94090.0,0.106281]
[1732136348310,0.14379168,94093.0,94090.0,0.106281]
[1732136348465,0.0488,94104.0,94097.0,0.106273]
[1732136348672,0.0781,94112.0,94106.0,0.106262]
[1732136348673,0.17309168,94112.0,94106.0,0.106262]
[1732136348863,0.12208609,94112.0,94093.0,0.106277]
[1732136349251,1.5,94120.0,94119.0,0.106248]
[1732136349456,0.52691349,94121.0,94120.0,0.106247]
[1732136349457,0.4319728,94121.0,94120.0,0.106247]
[1732136350856,0.66174074,94121.0,94112.0,0.106255]
[1732136351031,0.10625,94118.0,94112.0,0.106255]
[1732136351251,0.10711512,94117.0,94092.0,0.0831]
[1732136351455,0.0488,94115.0,94106.0,0.106262]
[1732136351650,0.10711512,94114.0,94086.0,0.106285]
[1732136351851,0.09494069,94113.0,94087.0,0.106284]
[1732136352057,0.10711512,94112.0,94111.0,0.106257]
[1732136352230,0.4319728,94121.0,94120.0,0.106247]
[1732136353530,0.4319728,94121.0,94120.0,0.107247]
[1732136353962,0.4319728,94121.0,94120.0,0.106247]
[1732136354229,0.4319728,94121.0,94120.0,0.107247]
[1732136354714,0.4319728,94121.0,94120.0,0.117247]
[1732136354865,0.4319728,94121.0,94120.0,0.30396212]
[1732136355070,0.4319728,94121.0,94120.0,0.43696212]
[1732136355264,0.0017122,94145.0,94120.0,0.43696212]
[1732136355265,0.0017122,94145.0,94136.0,0.01]
[1732136355498,0.0017122,94145.0,94144.0,0.29134598]
[1732136355702,0.0017122,94145.0,94144.0,0.41134598]
[1732136355911,0.0017122,94145.0,94144.0,0.41334598]
[1732136356137,0.001712,94159.0,94158.0,0.116204]
[1732136356253,0.19017819,94191.0,94158.0,0.116204]
[1732136356254,0.001713,94199.0,94170.0,0.11619]
[1732136356468,0.001713,94199.0,94170.0,0.30131598]
[1732136356661,0.001713,94199.0,94159.0,0.31331812]
[1732136356662,0.009947,94191.0,94161.0,0.106201]
[1732136356961,0.106194,94167.0,94146.0,0.106218]
[1732136357125,0.106194,94167.0,94144.0,0.001]
[1732136357126,0.212393,94165.0,94152.0,0.10621]
[1732136357338,0.212393,94165.0,94144.0,0.001]
[1732136357339,0.10711512,94164.0,94153.0,0.106209]
[1732136357531,0.10711512,94164.0,94157.0,0.106204]
[1732136357747,0.10711512,94164.0,94146.0,0.106218]
[1732136357942,0.153593,94169.0,94166.0,0.106195]
[1732136357943,0.0474,94169.0,94166.0,0.106195]
[1732136358148,0.10711512,94168.0,94166.0,0.106195]
[1732136358523,0.10711512,94168.0,94167.0,0.106194]
[1732136358887,0.0474,94169.0,94168.0,0.106193]
[1732136359087,0.0017118,94171.0,94168.0,0.106193]
[1732136359290,0.0017118,94171.0,94166.0,0.106194]
[1732136359513,0.10711512,94170.0,94150.0,0.106213]
[1732136359718,0.106194,94168.0,94161.0,0.1062]
[1732136359997,0.0017118,94171.0,94140.0,0.148701]
[1732136359998,0.10711512,94167.0,94155.0,0.106207]
[1732136360198,0.10711512,94167.0,94139.0,0.21245]
[1732136360440,0.10711512,94167.0,94138.0,0.1]
[1732136360616,0.10711512,94167.0,94147.0,0.106216]
[1732136360814,0.10711512,94167.0,94138.0,0.1]
[1732136361072,0.21239,94166.0,94138.0,0.1]
[1732136361327,0.0017118,94171.0,94170.0,0.10619]
[1732136362969,0.0017118,94171.0,94170.0,0.10719]
[1732136363172,0.0017118,94171.0,94170.0,0.30231598]
[1732136363353,0.001713,94199.0,94175.0,0.228185]
[1732136363559,0.001713,94199.0,94175.0,0.216185]
[1732136363954,0.001713,94199.0,94175.0,0.206185]
[1732136364568,0.001713,94199.0,94175.0,0.106185]
[1732136364816,0.212333,94192.0,94175.0,0.106185]
[1732136365054,0.106172,94187.0,94175.0,0.106185]
[1732136365235,0.212333,94192.0,94175.0,0.106185]
[1732136365236,0.106169,94189.0,94175.0,0.106185]
[1732136365452,0.106171,94188.0,94175.0,0.106185]
[1732136365646,0.212333,94192.0,94175.0,0.106185]
[1732136366031,0.106172,94187.0,94175.0,0.106185]
[1732136366226,0.212333,94192.0,94175.0,0.106185]
[1732136366437,0.001713,94199.0,94175.0,0.106185]
[1732136366634,0.212325,94196.0,94175.0,0.106185]
[1732136366839,0.106169,94189.0,94175.0,0.106185]
[1732136367013,0.212334,94192.0,94175.0,0.106185]
[1732136367265,0.001713,94199.0,94175.0,0.116185]
[1732136367690,0.001713,94199.0,94198.0,0.106159]
[1732136367924,0.001713,94199.0,94198.0,0.29128498]
[1732136368737,0.001713,94199.0,94198.0,0.72852608]
[1732136368979,0.0017124,94204.0,94203.0,0.228153]
[1732136369197,0.0017142,94216.0,94215.0,0.30126598]
[1732136369422,0.0017142,94216.0,94215.0,0.41126598]
[1732136369864,0.0017142,94216.0,94215.0,0.41326598]
[1732136370092,0.0017142,94216.0,94215.0,0.5433811]
[1732136370326,0.050712,94254.0,94238.0,0.106114]
[1732136370992,0.107816,94247.0,94238.0,0.106114]
[1732136371215,0.107816,94247.0,94233.0,0.106119]
[1732136371216,0.001712,94247.0,94233.0,0.106119]
[1732136371482,0.001712,94247.0,94217.0,0.1]
[1732136371483,0.10711512,94238.0,94229.0,0.106123]
[1732136371698,0.10711512,94238.0,94216.0,0.1]
[1732136371915,0.106115,94237.0,94228.0,0.106125]
[1732136372134,0.10711512,94236.0,94234.0,0.106118]
[1732136372369,0.001712,94247.0,94238.0,0.106114]
[1732136372917,0.001712,94247.0,94238.0,0.10717497]
[1732136373571,0.001712,94247.0,94241.0,0.045]
[1732136373787,0.001712,94247.0,94241.0,0.25822512]
[1732136374018,0.001712,94247.0,94241.0,0.35822512]
[1732136374463,0.001712,94247.0,94246.0,0.226105]
[1732136374718,0.001712,94254.0,94253.0,0.218097]
[1732136374920,0.001712,94254.0,94253.0,0.40322298]
[1732136375352,0.001712,94254.0,94253.0,0.40122298]
[1732136377323,0.001712,94254.0,94253.0,0.40322298]
[1732136377529,0.001712,94254.0,94253.0,0.5433381]
[1732136378150,0.0017128,94266.0,94258.0,0.226091]
[1732136378348,0.0017128,94266.0,94265.0,0.41120898]
[1732136378501,0.0017128,94266.0,94265.0,0.40120898]
[1732136378665,0.0017128,94266.0,94265.0,0.5183241]
[1732136379065,0.0017128,94266.0,94265.0,0.5103241]
[1732136379405,0.0017128,94266.0,94265.0,0.5203241]
[1732136379609,0.0017128,94266.0,94265.0,0.5183241]
[1732136379770,0.0017128,94266.0,94265.0,0.29120898]
[1732136381100,0.0017128,94266.0,94263.0,0.106086]
[1732136381303,0.0017128,94266.0,94265.0,0.106083]
[1732136382110,0.0017128,94266.0,94265.0,0.108083]
[1732136382381,0.0017128,94266.0,94265.0,0.106083]
[1732136383449,0.0458,94263.0,94246.0,0.106104]
[1732136383596,0.0458,94263.0,94235.0,0.18512598]
[1732136383597,0.009947,94258.0,94257.0,0.106092]
[1732136384208,0.0458,94263.0,94262.0,0.106087]
[1732136384419,0.0458,94263.0,94230.0,0.002]
[1732136384420,0.055747,94263.0,94235.0,0.106117]
[1732136384628,0.055747,94263.0,94234.0,0.18512598]
[1732136384629,0.055747,94263.0,94262.0,0.106087]
[1732136385948,0.0017128,94266.0,94265.0,0.106083]
[1732136386149,0.0017128,94266.0,94265.0,0.10914363]
[1732136386323,0.0017128,94266.0,94265.0,0.21625875]
[1732136386522,0.0017128,94266.0,94265.0,0.31425875]
[1732136386709,0.0017128,94266.0,94265.0,0.31319812]
[1732136387378,0.0017128,94266.0,94265.0,0.31519812]
[1732136387946,0.0017136,94269.0,94268.0,0.10808]
[1732136388159,2e-07,94270.0,94269.0,0.123]
[1732136388411,0.009947,94302.0,94278.0,0.106069]
[1732136388613,0.009947,94302.0,94278.0,0.29225537]
[1732136388823,0.01,94306.0,94298.0,0.106046]
[1732136389012,0.009947,94303.0,94298.0,0.106046]
[1732136389372,0.009947,94297.0,94271.0,0.1]
[1732136389571,0.01,94302.0,94295.0,0.10605]
[1732136389572,0.009947,94296.0,94295.0,0.10605]
[1732136390483,0.009947,94296.0,94275.0,0.106071]
[1732136390484,0.009947,94277.0,94275.0,0.106071]
[1732136390686,0.009947,94277.0,94276.0,0.106071]
[1732136391211,0.009947,94277.0,94266.0,0.106082]
[1732136391212,0.009947,94273.0,94266.0,0.106082]
[1732136391417,0.009947,94273.0,94246.0,0.18512598]
[1732136391418,0.009947,94270.0,94269.0,0.106079]
[1732136391683,0.009947,94265.0,94264.0,0.106085]
[1732136391882,0.0476,94264.0,94263.0,0.106085]
[1732136392084,0.0476,94264.0,94263.0,0.106086]
[1732136392240,0.057547,94264.0,94257.0,0.106092]
[1732136392447,0.017958,94260.0,94259.0,0.10609]
[1732136393279,0.017958,94260.0,94251.0,0.106099]
[1732136393495,0.009947,94251.0,94250.0,0.1061]
[1732136395145,0.009947,94251.0,94250.0,0.1061]
[1732136396042,0.009947,94250.0,94242.0,0.106108]
[1732136396381,0.009947,94250.0,94246.0,0.106105]
[1732136396665,0.009947,94250.0,94232.0,0.106121]
[1732136396872,0.009947,94250.0,94249.0,0.106101]
[1732136397085,0.009947,94250.0,94248.0,0.106102]
[1732136397292,0.212237,94234.0,94210.0,0.001989]
[1732136397437,0.009947,94232.0,94228.0,0.106125]
[1732136397640,0.12507312,94232.0,94225.0,0.106128]
[1732136397824,0.12507312,94232.0,94203.0,0.04407649]
[1732136397825,0.12507312,94232.0,94231.0,0.1069773]
[1732136398028,0.008011,94243.0,94234.0,0.106118]
[1732136398240,0.008011,94243.0,94242.0,0.106109]
[1732136398479,0.008011,94246.0,94243.0,0.106108]
[1732136398654,0.1,94265.0,94242.0,0.106109]
[1732136398655,0.008011,94259.0,94258.0,0.106091]
[1732136398860,0.009947,94260.0,94259.0,0.10609]
[1732136399146,0.017958,94260.0,94259.0,0.10609]
[1732136399328,0.009947,94260.0,94259.0,0.10609]
[1732136399474,0.009947,94257.0,94256.0,0.106093]
[1732136399682,0.009947,94260.0,94258.0,0.106091]
[1732136399882,0.008011,94259.0,94258.0,0.106091]
[1732136400129,0.008011,94259.0,94256.0,0.106093]
[1732136400333,0.008011,94259.0,94258.0,0.106091]
[1732136400653,0.009947,94255.0,94237.0,0.18512598]
[1732136400804,0.10711512,94259.0,94231.0,0.0008553]
[1732136400805,0.009947,94251.0,94250.0,0.1061]
[1732136401409,0.009947,94251.0,94245.0,0.106105]
[1732136401410,0.009947,94250.0,94245.0,0.106105]
[1732136401748,0.009947,94250.0,94231.0,0.0008553]
[1732136401749,0.017958,94248.0,94247.0,0.106104]
[1732136402248,0.049,94240.0,94235.0,0.106117]
[1732136402457,0.008011,94247.0,94246.0,0.106105]
[1732136402982,0.0147068,94247.0,94246.0,0.106105]
[1732136403135,0.008011,94247.0,94246.0,0.106105]
[1732136404240,0.712161,94268.0,94241.0,0.10611]
[1732136404241,0.017958,94260.0,94259.0,0.10609]
[1732136404673,1.517958,94260.0,94259.0,0.10609]
[1732136405234,0.009947,94253.0,94252.0,0.106098]
[1732136405466,0.11706212,94253.0,94252.0,0.106098]
[1732136405904,0.116051,94247.0,94246.0,0.0005]
[1732136406115,0.23117712,94247.0,94246.0,0.0005]
[1732136406343,0.40747712,94247.0,94246.0,0.0005]
[1732136406572,0.40747712,94247.0,94228.0,0.106124]
[1732136406573,0.106118,94234.0,94229.0,0.106123]
[1732136406862,0.124079,94232.0,94215.0,0.106139]
[1732136407067,0.27979412,94232.0,94215.0,0.106139]
[1732136407548,1.77979412,94232.0,94219.0,0.106134]
[1732136407776,1.77979412,94232.0,94197.0,0.001989]
[1732136407777,1.86149412,94232.0,94192.0,0.29129098]
[1732136408001,1.75537312,94232.0,94195.0,0.001989]
[1732136408281,1.75537312,94232.0,94231.0,0.1069773]
[1732136408747,1.76437312,94232.0,94231.0,0.1069773]
[1732136408985,1.76437312,94232.0,94231.0,0.0008553]
[1732136408986,1.87949412,94232.0,94231.0,0.0008553]
[1732136409251,2.5656201,94232.0,94231.0,0.0008553]
[1732136409436,2.38049412,94232.0,94231.0,0.0008553]
[1732136409953,2.91859412,94232.0,94231.0,0.0008553]
[1732136410194,3.01865667,94232.0,94231.0,0.0008553]
[1732136410418,2.89959412,94232.0,94231.0,0.0008553]
[1732136411143,2.90859412,94232.0,94231.0,0.0008553]
[1732136411625,2.89959412,94232.0,94231.0,0.0008553]
[1732136411883,2.91759412,94232.0,94231.0,0.0008553]
[1732136412330,2.89959412,94232.0,94231.0,0.0008553]
[1732136412533,2.89959412,94232.0,94231.0,0.0011553]
[1732136412775,2.90859412,94232.0,94231.0,0.0011553]
[1732136413359,2.37049412,94232.0,94231.0,0.0011553]
[1732136413555,0.008011,94215.0,94214.0,0.106141]
[1732136413781,0.11512612,94215.0,94214.0,0.106141]
[1732136414492,0.009947,94206.0,94193.0,0.106165]
[1732136414682,0.11862773,94215.0,94201.0,0.106155]
[1732136414683,0.009947,94202.0,94201.0,0.106155]
[1732136415785,0.009947,94206.0,94202.0,0.106154]
[1732136415978,0.009947,94206.0,94185.0,0.001989]
[1732136415979,0.009947,94207.0,94206.0,0.10615]
[1732136416951,0.017958,94217.0,94214.0,0.106141]
[1732136417105,0.017958,94217.0,94216.0,0.106139]
[1732136417513,0.01,94236.0,94216.0,0.106139]
[1732136417514,0.009947,94235.0,94216.0,0.18618733]
[1732136417711,0.009947,94232.0,94231.0,0.106121]
[1732136418063,0.009947,94232.0,94205.0,0.18598108]
[1732136418064,0.009947,94224.0,94223.0,0.106131]
[1732136419958,0.009947,94220.0,94219.0,0.106135]
[1732136420113,0.009947,94214.0,94213.0,0.106142]
[1732136420699,0.0574,94238.0,94211.0,0.106143]
[1732136420700,0.008011,94227.0,94211.0,0.106143]
[1732136420902,0.12507312,94227.0,94226.0,0.106127]
[1732136421777,0.11512612,94227.0,94226.0,0.106127]
[1732136422044,0.009947,94231.0,94230.0,0.106123]
[1732136422045,0.017958,94231.0,94230.0,0.106123]
[1732136423830,0.009947,94224.0,94218.0,0.106136]
[1732136424038,0.10711512,94223.0,94222.0,0.106132]
[1732136424918,0.10711512,94223.0,94204.0,0.04484719]
[1732136424919,0.009947,94208.0,94207.0,0.106148]
[1732136425233,0.009947,94208.0,94205.0,0.1070051]
[1732136425234,0.017958,94216.0,94215.0,0.10614]
[1732136426492,0.0483,94226.0,94222.0,0.106132]
[1732136426789,0.058247,94226.0,94225.0,0.106128]
[1732136427188,0.0483,94226.0,94225.0,0.106128]
[1732136427819,0.009947,94231.0,94229.0,0.106124]
[1732136427973,0.009947,94231.0,94230.0,0.106123]
[1732136428392,0.27961787,94232.0,94231.0,0.106122]
[1732136431540,0.27961787,94232.0,94230.0,0.106122]
[1732136431779,0.27961787,94232.0,94231.0,0.106122]
[1732136434222,0.009947,94240.0,94237.0,0.106115]
[1732136434424,0.009947,94240.0,94239.0,0.106113]
[1732136434644,0.017958,94240.0,94239.0,0.106113]
[1732136436577,0.009947,94240.0,94239.0,0.106113]
[1732136437255,0.017958,94240.0,94239.0,0.106113]
[1732136438729,0.017958,94240.0,94233.0,0.106119]
[1732136438952,0.009947,94228.0,94225.0,0.106127]
[1732136439176,0.009947,94228.0,94203.0,0.077289]
[1732136439177,0.009947,94228.0,94221.0,0.106133]
[1732136439416,0.009947,94223.0,94217.0,0.106136]
[1732136439621,0.009947,94223.0,94222.0,0.106132]
[1732136439819,0.008011,94229.0,94228.0,0.106125]
[1732136440008,0.009947,94231.0,94212.0,0.106143]
[1732136440009,0.009947,94231.0,94230.0,0.106123]
[1732136440970,0.008011,94238.0,94237.0,0.106115]
[1732136441213,0.11512612,94238.0,94237.0,0.106115]
[1732136441387,0.26967087,94239.0,94238.0,0.106114]
[1732136441388,0.008011,94239.0,94238.0,0.106114]
[1732136441698,0.008011,94239.0,94236.0,0.106115]
[1732136441846,0.008011,94239.0,94238.0,0.106114]
[1732136442798,0.0116586,94240.0,94239.0,0.106113]
[1732136443153,0.0196696,94240.0,94239.0,0.106113]
[1732136443761,0.009947,94223.0,94201.0,0.002]
[1732136443966,0.009947,94223.0,94210.0,0.04365727]
[1732136444189,0.009947,94223.0,94222.0,0.106132]
[1732136444568,0.009947,94223.0,94220.0,0.106134]
[1732136444842,0.009947,94223.0,94219.0,0.106135]
[1732136445043,0.009947,94223.0,94221.0,0.106132]
[1732136445368,0.009947,94223.0,94222.0,0.106132]
[1732136446522,0.009947,94221.0,94217.0,0.106137]
[1732136446722,0.009947,94212.0,94211.0,0.106144]
[1732136448751,0.008011,94216.0,94215.0,0.10614]
[1732136449004,0.00496,94232.0,94231.0,0.106122]
[1732136450569,0.00496,94232.0,94231.0,0.1071831]
[1732136451519,0.00496,94232.0,94231.0,0.106122]
[1732136453928,0.0066716,94232.0,94231.0,0.106122]
[1732136459193,0.0066716,94232.0,94231.0,0.29430909]
[1732136459358,0.0066716,94232.0,94231.0,0.39523698]
[1732136459535,0.0066716,94232.0,94231.0,0.39124798]
[1732136459965,0.0066716,94232.0,94231.0,0.38124798]
[1732136460167,0.0066716,94232.0,94231.0,0.38323698]
[1732136460368,0.1322716,94232.0,94231.0,0.38323698]
[1732136460894,0.1322716,94232.0,94231.0,0.38124798]
[1732136461094,0.1322716,94232.0,94231.0,0.096122]
[1732136461862,0.1322716,94232.0,94231.0,0.13990553]
[1732136465001,0.0461,94231.0,94227.0,0.212252]
[1732136465202,0.0461,94231.0,94230.0,0.106123]
[1732136465626,0.0461,94231.0,94230.0,0.29124898]
[1732136468466,0.0066716,94232.0,94231.0,0.206122]
[1732136468664,0.0066716,94232.0,94231.0,0.21117202]
[1732136469935,0.0066716,94232.0,94231.0,0.210111]
[1732136473210,0.0828,94245.0,94239.0,0.001989]
[1732136473456,6e-07,94240.0,94239.0,0.5023431]
[1732136474359,0.40616723,94247.0,94246.0,0.210094]
[1732136474360,0.19395783,94247.0,94246.0,0.210094]
[1732136474585,0.0017102,94260.0,94259.0,0.208079]
[1732136474789,0.0017106,94266.0,94265.0,0.206083]
[1732136475914,0.0017106,94266.0,94265.0,0.208083]
[1732136478851,0.0017106,94266.0,94265.0,0.25178498]
[1732136480720,0.212062,94312.0,94265.0,0.25178498]
[1732136480721,0.0461,94281.0,94280.0,0.106067]
[1732136480970,0.0461,94281.0,94280.0,0.208067]
[1732136481212,0.0461,94281.0,94280.0,0.206067]
[1732136481726,0.0461,94281.0,94280.0,0.208067]
[1732136482599,0.1242,94294.0,94293.0,0.106052]
[1732136482851,0.1242,94294.0,94293.0,0.29317798]
[1732136482852,0.0461,94294.0,94293.0,0.29317798]
[1732136483074,0.001912,94299.0,94298.0,0.106046]